Cogmind - Beta 13 @@@ ROGUE MODE // 2024.07.07 @ 20:27:40 Player: RealTimeWarfare Result: Destroyed by as-37508 with Assembled Rifle Performance ------------- Evolutions (0) 0 Regions Visited (0) 0 Robots Destroyed (2) 10 Value Destroyed (14) 14 Prototype IDs (0) 0 Alien Tech Used (0) 0 Bonus (0) 0 TOTAL SCORE: 24 Bonus ------- None Cogmind --------- Core Integrity 0/250 Matter 275/300 Energy 100/100 System Corruption 0% Temperature Cool (0) Movement Rolling (80) Location -11/Scrapyard Parts ------- > --- POWER (1) -------- (None) > --- PROPULSION (2) --- Wheel > --- UTILITY (2) ------ Small Storage Unit Seismic Detector > --- WEAPON (2) ------- Mini Grenade Launcher > --- INVENTORY (8) ---- Medium Matter Pod (85) Improved Terrain Scanner Peak State ------------ > --- POWER ------------ Light Ion Engine > --- PROPULSION ------- Light Treads Light Treads > --- UTILITY ---------- Improved Terrain Scanner Seismic Detector > --- WEAPON ----------- Medium Laser Medium Laser > --- INVENTORY -------- Small Storage Unit EM Pulse Gun Mining Laser [Rating: 9] Favorites ----------- Power Light Ion Engine Engine Light Ion Engine Propulsion Light Treads Treads Light Treads Wheel Wheel Utility Seismic Detector Device Seismic Detector Storage Small Storage Unit Weapon Medium Laser Energy Gun Medium Laser Launcher Mini Grenade Launcher Special Weapon Mining Laser Build | -11 ------- Run | Yrd Slots Evolved . | . Power . | . Propulsion . | . Utility . | . Weapon . | . Parts Attached 14 | 14 Power 1 | 1 Engine 1 | 1 Core . | . Reactor . | . Propulsion 3 | 3 Treads 2 | 2 Leg . | . Wheel 1 | 1 Hover . | . Flight . | . Utility 3 | 3 Device 2 | 2 Storage 1 | 1 Processor . | . Hackware . | . Protection . | . Artifact . | . Weapon 7 | 7 Energy Gun 4 | 4 Energy Cannon . | . Ballistic Gun . | . Ballistic Cannon . | . Launcher 1 | 1 Special Weapon 2 | 2 Impact Weapon . | . Slashing Weapon . | . Piercing Weapon . | . Special Melee Weapon . | . Unidentified Prototypes . | . Parts Lost 8 | 8 Power 1 | 1 Propulsion 2 | 2 Utility 1 | 1 Weapon 4 | 4 Highest Loss Streak 7 | 7 To Critical Strikes . | . Average Slot Usage (%) . | . Naked Turns . | . Heaviest Build 8 | 8 Greatest Support 40 | 40 Greatest Overweight (x) . | . Average Overweight (x) . | . Largest Inventory Capacity 8 | 8 Average Capacity 5 | 5 Most Carried 5 | 5 Average Carried 3 | 3 Final Capacity 8 | 8 Final Carried 2 | 2 Class Distribution -------------------- None Dominant Class ---------------- None Resources | -11 ----------- Run | Yrd Matter Collected 345 | 345 Remotely . | . Salvage Created 45 | 45 Parts 8 | 8 Haulers Intercepted . | . Recyclers Shooed . | . Parts Field Recycled . | . Retrieved Matter . | . Parts Self-Destructed . | . Prevented . | . Kills | -11 ------- Run | Yrd Combat Hostiles Destroyed 6 | 6 AOE 6 | 6 Classes Destroyed 2 | 2 Tunneler 2 | 2 Assembled 6 | 6 Best Kill Streak 6 | 6 Combat Bots Only 6 | 6 Max Kills in Single Turn 3 | 3 Gunslinging . | . Exploded 3 | 3 Melee . | . Uniques/NPCs Destroyed . | . Combat | -11 -------- Run | Yrd Hostile Shots Fired 41 | 41 Missed 11 | 11 Damage Taken 834 | 834 Core 250 | 250 Absorbed by Shields . | . Core Remaining (%) . | . Volleys Fired 42 | 42 Largest 2 | 2 Hottest 100 | 100 Shots Fired 47 | 47 Gun 12 | 12 Cannon . | . Launcher 7 | 7 Special 28 | 28 Kinetic . | . Thermal 40 | 40 Explosive 7 | 7 Electromagnetic . | . Robot Hit Streak 4 | 4 Robot Miss Streak 2 | 2 Penetration Max . | . Secondary Targets . | . Shots Hit Robots 10 | 10 Core Hits 18 | 18 Critical Kills . | . Critical Parts Destroyed . | . Critical Strikes 1 | 1 Burn 1 | 1 Melee Attacks . | . Impact . | . Slashing . | . Piercing . | . Sneak Attacks . | . Combat Hostiles . | . Follow-up Attacks . | . Damage Inflicted 544 | 544 Guns 111 | 111 Cannons . | . Explosions 433 | 433 Melee . | . Ramming . | . Kinetic . | . Thermal 111 | 111 Explosive 433 | 433 Electromagnetic . | . Impact . | . Slashing . | . Piercing . | . Highest Corruption . | . Average Corruption . | . Corruption Purged . | . Corruption Blocked . | . Overload Shots . | . Overflow Damage 10 | 10 Projectiles . | . Explosions 10 | 10 Melee . | . Knockbacks . | . Impact . | . Kinetic . | . Secondary . | . Self-Inflicted Damage . | . Shots . | . Rammed . | . Targets Rammed . | . Kicked . | . Crushed . | . Highest Temperature 157 | 157 Average Temperature 36 | 36 Received Heat Transfer 120 | 120 Siege Activations . | . Robots Corrupted . | . Combat Hostiles . | . Parts Fried . | . Impact Corruptions . | . Robots Melted . | . Combat Hostiles . | . Parts Melted . | . Heat Transferred 407 | 407 Parts Sabotaged . | . Parts Stolen . | . Parts Stripped . | . Power Chain Reactions . | . Alert | -11 ------- Run | Yrd Peak Influence 15 | 15 Initial . | . Average 2 | 2 Maximum Alert Level . | . Low Security (%) 100 | 100 Level 1 . | . Level 2 . | . Level 3 . | . Level 4 . | . Level 5 . | . High Security . | . Max Security . | . Squads Dispatched . | . Investigation . | . Extermination . | . Reinforcement . | . Assault . | . Garrison . | . Intercept . | . Searches Triggered . | . Construction Impeded . | . Haulers Reinforced . | . Active Scanning Responses . | . Cargo Convoy Interrupts . | . Stealth | -11 --------- Run | Yrd Distress Signals . | . Communications Jammed . | . Distress Signals . | . Times Spotted 20 | 20 Peak Tracking Total 13 | 13 Tactical Retreats 1 | 1 Traps | -11 ------- Run | Yrd Traps Triggered . | . Indirectly . | . Trap Hack Attempts . | . Triggered . | . Disarmed . | . Reprogrammed . | . Reused . | . Traps Extracted . | . Installed . | . Triggered . | . Machines | -11 ---------- Run | Yrd Machines Disabled . | . Max in Single Turn . | . Machines Repaired . | . Machines Dismantled . | . Machines Sabotaged . | . Overloaded Fab Kills . | . Hacking | -11 --------- Run | Yrd Machines Accessed . | . Terminals . | . Fabricators . | . Repair Stations . | . Recycling Units . | . Scanalyzers . | . Garrison Access . | . Total Hacks . | . Successful . | . Failed . | . Catastrophic . | . Database Lockouts . | . Manual . | . Terminals . | . Fabricators . | . Repair Stations . | . Recycling Units . | . Scanalyzers . | . Garrison Access . | . Terminal Hacks . | . Fabricator Hacks . | . Repair Station Hacks . | . Recycling Unit Hacks . | . Scanalyzer . | . Garrison Access Hacks . | . Unauthorized Hacks . | . Terminals . | . Fabricators . | . Repair Stations . | . Recycling Units . | . Scanalyzers . | . Garrison Access . | . Data Cores Recovered . | . Used . | . Hacking Detections . | . Full Trace Events . | . Feedback Events . | . Feedback Blocked . | . Robot Schematics Acquired . | . Robots Built . | . Authchips . | . Time . | . Total Robot Build Rating . | . Part Schematics Acquired . | . Parts Built . | . Authchips . | . Time . | . Total Part Build Rating . | . Parts Repaired . | . Time . | . Parts Recycled . | . Recycled Matter . | . Retrieved Matter . | . Retrieved Components . | . Parts Scanalyzed . | . Part Schematics Acquired . | . Parts Damaged . | . Bothacking | -11 ------------ Run | Yrd Used RIF Installer . | . Robots Hacked . | . Non-combat . | . Combat . | . Robot Hacks Applied . | . Relay Couplers Released . | . Fabnet Peak Effective % . | . Robots Rewired . | . Allies Hacked . | . Hacks Repelled . | . Allies | -11 -------- Run | Yrd Total Allies . | . Largest Group . | . Highest-Rated Group . | . Highest-Rated Ally . | . Total Orders . | . Ally Attacks . | . Total Damage . | . Kills . | . Allies Corrupted . | . Allies Melted . | . Intel | -11 ------- Run | Yrd Robot Analysis Total . | . Derelict Logs Recovered . | . Drone Launches . | . Drone Recoveries . | . Exploration | -11 ------------- Run | Yrd Turns Passed 1307 | 1307 Spaces Moved 122 | 122 Core 4 | 4 Treads 115 | 115 Legs . | . Wheels 3 | 3 Hover . | . Flight . | . Fastest Speed 50 | 50 Average Speed 154 | 154 Slowest Speed 160 | 160 Overloaded Moves . | . Propulsion Burnouts . | . Robots Hopped . | . Cave-ins Triggered . | . Exploration Rate (%) 20 | 20 Regions Visited . Branch Regions . Pre-discovered Areas . | . Known Exits Taken . | . Unknown Exits Taken . | . Scrap Searched . | . Spaces Dug 14 | 14 Terrain Destroyed 35 | 35 Melee . | . Projectile 15 | 15 AOE 20 | 20 Terrain Rammed . | . Walls Destroyed . | . Machines Disabled . | . Actions | -11 --------- Run | Yrd Total 1137 | 1137 Wait 945 | 945 Move 122 | 122 Hop . | . Pick Up 14 | 14 Fast Attach . | . Attach 12 | 12 Detach . | . Swap 2 | 2 Drop . | . Fire 42 | 42 Melee . | . Ram . | . Kick . | . Crush . | . Escape Stasis . | . Rewire . | . Trap . | . Miscellaneous . | . Route ------- -11/Scrapyard (discovered 1 exit: [*Mat]) History --------- Turn | Location | Event 13 | -11/Scrapyard | Discovered new exit (range 15) 1233 | -11/Scrapyard | Assembled infested the area 1259 | -11/Scrapyard | Core integrity fell below 50% 1268 | -11/Scrapyard | Core integrity fell below 20% 1289 | -11/Scrapyard | Lost 7 parts (1p1n1u4w) 1308 | -11/Scrapyard | Destroyed by as-37508 with Assembled Rifle Last Messages --------------- as-14693 destroyed. as-47649 destroyed. Destroyed Asb. F-torch. as-70175 destroyed. as-98758 destroyed. Destroyed Asb. Hover Unit. as-08646 destroyed. The unstable cave ceiling collapses. as-87842 destroyed. Acquired 36 matter. The unstable cave ceiling collapses. Acquired 90 matter. Acquired 17 matter. Acquired 35 matter. The unstable cave ceiling collapses. Extracted 15 matter. Acquired Med. Matter Pod. Acquired Wheel. Lgt. Treads destroyed. The unstable cave ceiling collapses. Map ----- +----------------------------------------------------+ | ?????????????????????????????????????????????????? | | ???????????????????????? ????????????????????????? | | ?????????????????????##?%????????????????????????? | | ??????????????????? #!????????????????????????? | | ??????????????????? # ????????????????????????? | | ??????????????????? # #???????????????????????? | | ??????????????????? # #?????????????#?????????? | | ?????????????????? # ###?????????????????????? | | ???????????????##? ##???#????????????????? | | ?????????????## ## ##???#???#???????????? | | ?????????????# #?#?##???##?????????? | | ?????????????# ## ##########??#???????? | | ?????????????# a #????#?#?????? | | ?????????????# a #?#?#??##????? | | ??????????????# ######?###???? | | ??????????????# #?####?####??? | | ??????????????# #??#?#?#####?? | | ??????????????# #?#?##??#??#?? | | ??????????????# #?#####?##?#?? | | ??????????????####### #####??#?###?? | | ??????????########### ! ###################?## | | ??????????# # #### #### ##?#####?##? | | ??????????# # #### #######??#?#? | | ??????????# #?# #? ? # | | ??????????# # #### ###?# ? | | ??????????# # @## # #??? #? | | ??????????############## #### # # ? ?? | | ???????##########??## # # ## ? | | ???????# #?#?# # #?? # ? ??# | | ???????# #???#r ### ###### #?##??###? | | ???????# * ##### ??# | | ???????# = = = ? ? | | ???????# ### ###### ###### #?? | | ???????# = ##### < # #?##?##?# #??? | | ???????# #???# % ## ####?#?#? ???? | | ???????# #???########## ###?##??# ???? | | ???????##########???????##???# ##?#?###? ???? | | ????????????????????????###### #####??##?????? | | ????????????????????#????##?#? ####????#?????? | | ????????????????????????????########??#?##???????? | | ?????????????????????????????#?#?####?#??????????? | | ???????????????????????????????#?????????????????? | | ?????????????????????????????????????????????????? | | ?????????????????????????????????????????????????? | | ?????????????????????????????????????????????????? | | ?????????????????????????????????????????????????? | | ?????????????????????????????????????????????????? | | ?????????????????????????????????????????????????? | | ?????????????????????????????????????????????????? | | ?????????????????????????????????????????????????? | +----------------------------------------------------+ Best States ------------- Heat Dissipation 25 Energy Generation 10 Energy Capacity 125 Matter Stores 300 Matter Capacity 300 Sight Range 16 Terrain Scan Range 16 Terrain Scan Density 10 Evasion (%) 40 Recoil Reduction 2 Item Schematics ----------------- None Robot Schematics ------------------ None Fabricated ------------ Nothing Alien Tech Used ----------------- None Achievements -------------- Curiosity Killed The Cat Challenges ------------ None Game ------ Seed FortressFusionInitializer Manual? 0 Play Time 00:23:58 Cumulative 3.2 hours Start 2024.07.07 @ 20:14:09 End 2024.07.07 @ 20:27:40 Sessions 0 Manual Loads 0 Difficulty Rogue Special Mode None Game No. 4 Rogue 4 Adventurer 0 Explorer 0 Win Type - Total 0 Types 0/0/0/0/0/0/0/0/0 Lore% 1 Gallery% 4 Achievement% 4 Wizard Run 0 Options --------- Layout 1 ASCII 0 Keyboard 0 Movement Numpad Keybinds 0 Fullscreen 1 Font 24/Smallcaps Map View 50x35 Zoom Use 0% Tactical HUD 0 Map Filters NONE Filters NONE Steam 1 RUN: cea4bb49-dbd5-441e-9da5-094cd9831894